bitfinex/quotes_SOLUSD_20260308
["timestamp","ask_amount","ask_price","bid_price","bid_amount"]
[1772980232862,0.3,82.156,82.107,0.74908438]
[1772980233052,0.3,82.156,82.11,0.46476124]
[1772980233252,0.3,82.156,82.112,0.46476124]
[1772980234463,12.47181737,82.157,82.115,0.46476124]
[1772980235375,12.47181737,82.157,82.117,0.46476124]
[1772980235376,12.17181737,82.157,82.117,0.46476124]
[1772980235776,0.2,82.16,82.119,0.46476124]
[1772980236159,13.19270207,82.158,82.119,0.46476124]
[1772980236652,0.3,82.157,82.119,0.46476124]
[1772980236979,0.3,82.157,82.107,1.21792295]
[1772980236980,4.74372377,82.15,82.086,60.91122363]
[1772980237273,0.45731881,82.147,82.094,0.28432314]
[1772980237474,0.45731881,82.147,82.093,3.69383402]
[1772980238087,0.45731881,82.147,82.094,1.55311578]
[1772980238682,0.45731881,82.145,82.095,42.63353431]
[1772980239057,0.45731881,82.145,82.096,0.46476124]
[1772980240279,12.17344727,82.146,82.096,0.46476124]
[1772980240661,0.45731881,82.146,82.099,0.46476124]
[1772980243169,0.45731881,82.144,82.101,0.74908438]
[1772980243376,0.45731881,82.144,82.102,0.46476124]
[1772980245580,30.43017108,82.156,82.105,0.46476124]
[1772980247577,30.43017108,82.156,82.104,0.28432314]
[1772980247578,0.30744243,82.153,82.107,0.46476124]
[1772980250178,4.74372377,82.15,82.109,0.46476124]
[1772980250382,0.30744243,82.149,82.109,0.46476124]
[1772980252585,0.30744243,82.147,82.109,0.46476124]
[1772980252793,0.30744243,82.147,82.098,0.46476124]
[1772980253984,0.30744243,82.145,82.099,0.46476124]
[1772980254578,0.30744243,82.139,82.099,0.46476124]
[1772980255872,0.30744243,82.137,82.099,0.46476124]
[1772980256107,0.30744243,82.137,82.101,0.46476124]
[1772980256273,42.61121526,82.138,82.101,0.46476124]
[1772980256482,12.48021677,82.151,82.103,0.46476124]
[1772980256681,12.17277434,82.151,82.104,0.46476124]
[1772980257088,0.30744243,82.15,82.105,0.46476124]
[1772980257388,0.30744243,82.15,82.107,0.46476124]
[1772980257590,0.30744243,82.15,82.108,0.46476124]
[1772980257798,0.30744243,82.15,82.109,0.46476124]
[1772980258286,0.30744243,82.15,82.111,0.46476124]
[1772980259496,12.17300271,82.149,82.112,12.17848791]
[1772980259791,12.17300271,82.149,82.113,0.46476124]
[1772980259792,0.30744243,82.148,82.113,0.46476124]
[1772980260167,0.30744243,82.148,82.114,0.46476124]
[1772980261683,0.30744243,82.146,82.116,0.46476124]
[1772980263402,0.30744243,82.155,82.116,0.46476124]
[1772980263978,0.2,82.16,82.113,1.64566192]
[1772980263979,0.2,82.16,82.118,0.4760419]
[1772980264181,0.30744243,82.169,82.12,0.4760419]
[1772980264380,12.36990905,82.17,82.12,0.4760419]
[1772980264579,0.30744243,82.183,82.122,0.48215113]
[1772980264794,0.50744243,82.19,82.122,0.48215113]
[1772980264986,12.16707831,82.189,82.122,0.48215113]
[1772980265304,0.30744243,82.188,82.125,0.48215113]
[1772980266414,0.30744243,82.186,82.128,0.48215113]
[1772980268611,0.30744243,82.186,82.13,0.76647427]
[1772980268804,0.30744243,82.186,82.131,0.48215113]
[1772980270598,0.30744243,82.184,82.134,0.48215113]
[1772980272306,0.30744243,82.182,82.136,0.48215113]
[1772980274496,0.30744243,82.18,82.138,0.48215113]
[1772980276411,0.30744243,82.178,82.14,0.48215113]
[1772980279021,12.47629746,82.177,82.142,0.48215113]
[1772980281326,0.30744243,82.176,82.144,0.48215113]
[1772980282521,0.30744243,82.174,82.146,0.48215113]
[1772980282717,0.30744243,82.174,82.124,0.48215113]
[1772980282919,0.30744243,82.174,82.125,0.48215113]
[1772980285637,0.30744243,82.172,82.127,0.48215113]
[1772980287525,0.30744243,82.17,82.129,0.48215113]
[1772980290038,1e-08,82.19,82.14,0.5]
[1772980290222,104.00413923,82.179,82.14,0.5]
[1772980291616,42.59047433,82.178,82.142,0.5]
[1772980293619,42.59151089,82.176,82.143,12.17389187]
[1772980293823,42.59151089,82.176,82.144,0.5]
[1772980295023,42.59151089,82.176,82.145,12.17359547]
[1772980295339,42.59151089,82.176,82.136,30.43700038]
[1772980295340,42.59151089,82.176,82.146,0.5]
[1772980297241,12.16929929,82.174,82.146,0.5]
[1772980300726,12.16959548,82.172,82.146,0.5]
[1772980302246,30.42250778,82.176,82.146,0.5]
[1772980304252,42.59254751,82.174,82.146,0.5]
[1772980305345,42.59254751,82.174,82.117,103.6]
[1772980305346,4.74080862,82.17,82.118,0.5]
[1772980305554,4.74080862,82.16,82.119,0.5]
[1772980307758,42.60084227,82.158,82.121,0.5]
[1772980309152,42.60084227,82.158,82.123,0.5]
[1772980309354,4.74080862,82.15,82.119,0.5]
[1772980311168,12.17315089,82.148,82.121,0.5]
[1772980312668,0.02085258,82.147,82.123,0.5]
[1772980313964,0.02190303,82.166,82.123,0.5]
[1772980314559,12.477186,82.146,82.124,12.17670839]
[1772980314869,12.477186,82.146,82.125,0.5]
[1772980315447,12.17359547,82.145,82.125,0.5]
[1772980316574,0.02396786,82.147,82.125,0.5]
[1772980317266,0.02396786,82.147,82.113,32.09149255]
[1772980317267,0.02396786,82.147,82.126,12.17641185]
[1772980317468,0.02498252,82.152,82.127,0.5]
[1772980318553,12.17285453,82.15,82.127,0.5]
[1772980318775,0.02697702,82.149,82.127,0.5]
[1772980320158,0.02697702,82.149,82.129,0.5]
[1772980321074,0.02892597,82.153,82.129,0.5]
[1772980322059,12.17270635,82.151,82.129,0.5]
[1772980322457,0.02988368,82.177,82.131,0.5]
[1772980323566,104.00413923,82.176,82.131,0.5]
[1772980323768,0.03269133,82.175,82.131,0.5]
[1772980324775,0.48996291,82.174,82.118,0.28432314]
[1772980326766,0.48996291,82.172,82.122,0.50561356]
[1772980327577,146.59720507,82.173,82.122,0.50561356]
[1772980327578,0.48996291,82.159,82.122,0.50561356]
[1772980328077,0.48996291,82.164,82.122,0.50561356]
[1772980328972,12.17107665,82.162,82.124,0.50561356]
[1772980329374,104.00413923,82.163,82.125,0.50561356]
[1772980329681,104.00413923,82.163,82.125,0.00561356]
[1772980330969,104.00413923,82.163,82.125,42.61796042]
[1772980331679,104.00413923,82.163,82.126,0.50561356]
[1772980332882,104.00413923,82.163,82.126,0.00561356]
[1772980333981,104.49410214,82.163,82.126,0.00561356]
[1772980334587,0.48996291,82.162,82.126,0.00561356]
[1772980337491,104.49410214,82.161,82.126,0.00561356]
[1772980338789,0.48996291,82.16,82.126,0.00561356]
[1772980339990,0.48996291,82.164,82.126,0.00561356]
[1772980340779,0.48996291,82.164,82.125,42.12357398]
[1772980341998,104.49410214,82.163,82.125,42.12357398]
[1772980342496,0.48996291,82.176,82.126,1.21764118]
[1772980342995,0.48996291,82.176,82.128,0.50561356]
[1772980343293,0.48996291,82.176,82.131,0.50561356]
[1772980343498,0.48996291,82.176,82.134,0.50561356]
[1772980344381,0.48996291,82.176,82.136,0.50561356]
[1772980344583,1e-08,82.19,82.14,0.50561356]
[1772980344778,12.16471017,82.205,82.143,0.50561356]
[1772980344981,12.16471017,82.205,82.149,0.50561356]
[1772980345389,12.16471017,82.205,82.151,0.50561356]
[1772980345593,5.45559821,82.22,82.151,0.50561356]
[1772980345594,0.71478959,82.22,82.151,0.50561356]
[1772980345794,0.71478959,82.22,82.156,0.50561356]
[1772980346001,0.2,82.23,82.164,3.69383402]
[1772980346304,0.1,82.25,82.17,0.50561356]
[1772980346490,12.16009845,82.237,82.175,0.50561356]
[1772980346693,0.48996291,82.236,82.176,0.50561356]
[1772980347197,0.48996291,82.236,82.175,0.28432314]
[1772980347198,0.48996291,82.236,82.181,0.50561356]
[1772980347504,0.48996291,82.236,82.186,0.50561356]
[1772980348889,0.48996291,82.236,82.192,0.50561356]
[1772980350004,0.48996291,82.236,82.195,0.50561356]
[1772980351197,0.48996291,82.236,82.197,0.7899367]
[1772980351397,0.48996291,82.236,82.198,0.50561356]
[1772980351786,0.48996291,82.243,82.198,0.50561356]
[1772980352095,0.48996291,82.239,82.198,0.50561356]
[1772980353122,0.48996291,82.239,82.203,0.5700356]
[1772980353817,0.48996291,82.239,82.205,0.5700356]
[1772980356006,0.48996291,82.239,82.207,0.5700356]
[1772980357508,0.58726905,82.237,82.209,0.5700356]
[1772980357893,0.58726905,82.237,82.196,0.5700356]
[1772980359095,0.58726905,82.237,82.197,42.58062946]
[1772980359300,0.58726905,82.235,82.198,0.5700356]
[1772980360401,0.58726905,82.239,82.199,0.5700356]
[1772980360811,0.58726905,82.238,82.199,0.5700356]
[1772980361307,0.58726905,82.238,82.202,0.5700356]
[1772980361732,0.1,82.25,82.205,0.5700356]
[1772980362010,0.58726905,82.261,82.208,0.5700356]
[1772980362206,0.58726905,82.261,82.214,0.5700356]
[1772980362418,0.58726905,82.261,82.216,0.5700356]
[1772980363010,0.58726905,82.261,82.22,0.5700356]
[1772980363314,0.58726905,82.261,82.219,42.56923581]
[1772980363315,0.58726905,82.268,82.223,0.5700356]
[1772980365719,0.2,82.28,82.228,0.5700356]
[1772980365896,0.2,82.28,82.229,0.5700356]
[1772980366097,12.15214271,82.291,82.263,0.5700356]
[1772980367213,42.80701202,82.309,82.263,0.5700356]
[1772980367716,0.58726905,82.308,82.263,0.5700356]
[1772980368613,42.52372215,82.307,82.263,0.5700356]
[1772980368812,0.58726905,82.305,82.263,0.5700356]
[1772980370715,0.58726905,82.303,82.265,0.5700356]
[1772980371404,0.58726905,82.299,82.252,0.5700356]
[1772980372921,0.58726905,82.297,82.254,0.5700356]
[1772980377913,0.58726905,82.295,82.256,0.5700356]
[1772980381238,0.58726905,82.293,82.258,0.5700356]
[1772980381413,0.1,82.31,82.259,0.5700356]
[1772980381611,0.1,82.32,82.261,0.5700356]
[1772980381937,0.58726905,82.331,82.264,0.5700356]
[1772980382137,0.58726905,82.331,82.267,0.5700356]
[1772980382330,0.58726905,82.331,82.27,0.5700356]
[1772980382530,0.58726905,82.331,82.272,0.28432314]
[1772980382830,0.58726905,82.331,82.262,3.69383402]
[1772980382831,12.14638827,82.329,82.275,0.60388782]
[1772980383227,0.60322931,82.328,82.278,0.60388782]
[1772980384539,0.60322931,82.328,82.28,0.89882265]
[1772980384746,0.60322931,82.328,82.282,0.75666108]
[1772980384951,0.60322931,82.328,82.283,0.61449951]
[1772980385633,0.60322931,82.328,82.285,0.61449951]
[1772980385816,12.73339995,82.338,82.288,0.89882265]
[1772980386017,0.1,82.35,82.291,0.61449951]
[1772980386214,0.58819923,82.368,82.308,0.61449951]
[1772980386442,0.58819923,82.368,82.314,0.61449951]
[1772980386644,0.58819923,82.368,82.315,0.61449951]
[1772980386941,3.97815716,82.402,82.315,0.61449951]
[1772980386942,0.58819923,82.366,82.315,0.61449951]
[1772980387627,0.58819923,82.364,82.318,0.61449951]
[1772980388338,0.1,82.37,82.318,0.61449951]
[1772980388724,0.68819923,82.37,82.318,0.61449951]
[1772980389236,0.58819923,82.368,82.318,0.61449951]
[1772980389438,0.58819923,82.359,82.316,12.14830652]
[1772980389649,0.58819923,82.349,82.307,12.76413441]
[1772980390325,0.58819923,82.349,82.303,12.15021364]
[1772980390726,0.58819923,82.349,82.305,0.61449951]
[1772980391927,0.58819923,82.348,82.307,0.61449951]
[1772980393156,0.58819923,82.347,82.307,0.61449951]
[1772980394149,12.14388069,82.346,82.308,12.14948729]
[1772980394330,0.58819923,82.345,82.301,0.61449951]
[1772980394532,0.58819923,82.339,82.286,0.61449951]
[1772980395355,0.58819923,82.339,82.287,0.61449951]
[1772980395653,4.83148772,82.4,82.285,42.53509144]
[1772980395654,0.58819923,82.345,82.29,0.61449951]
[1772980395828,0.58819923,82.345,82.292,0.61449951]
[1772980396435,0.58819923,82.345,82.297,0.61449951]
[1772980396641,0.58819923,82.345,82.298,0.61449951]
[1772980397250,12.73235726,82.345,82.298,0.61449951]
[1772980398956,0.58819923,82.344,82.3,0.28432314]
[1772980399159,0.58819923,82.344,82.301,0.61449951]
[1772980399355,0.58819923,82.344,82.299,12.15081592]
[1772980399658,42.50422846,82.345,82.299,12.15081592]
[1772980399659,0.58819923,82.339,82.299,12.15081592]
[1772980400458,0.58819923,82.337,82.287,0.61449951]
[1772980400662,42.5077121,82.338,82.263,0.61449951]
[1772980400663,4.73148772,82.31,82.263,0.61449951]
[1772980400860,0.58819923,82.336,82.264,0.61449951]
[1772980401164,0.58819923,82.336,82.266,0.61449951]
[1772980402041,0.58819923,82.329,82.266,0.61449951]
[1772980402240,0.58819923,82.329,82.268,0.61449951]
[1772980402446,0.58819923,82.327,82.275,0.61449951]
[1772980404967,0.58819923,82.325,82.277,0.61449951]
[1772980406759,0.58819923,82.325,82.276,12.15421265]
[1772980406760,0.58819923,82.319,82.276,12.15421265]
[1772980406954,0.58819923,82.317,82.266,30.38913011]
[1772980407261,0.58819923,82.317,82.267,0.61449951]
[1772980408168,0.58819923,82.317,82.268,0.61449951]
[1772980409862,0.58819923,82.315,82.27,0.61449951]
[1772980410771,0.58819923,82.309,82.269,12.15524681]
[1772980411661,0.58819923,82.309,82.27,0.61449951]
[1772980411964,0.58819923,82.307,82.271,42.5423296]
[1772980412170,0.58819923,82.307,82.271,12.15495131]
[1772980414672,0.59207703,82.305,82.267,0.58996044]
[1772980415670,0.59207703,82.303,82.269,0.58996044]
[1772980417571,0.59207703,82.301,82.271,0.58996044]
[1772980421368,0.59207703,82.299,82.272,12.74476401]
[1772980421555,0.59207703,82.299,82.273,0.58996044]
[1772980423458,0.59207703,82.297,82.267,0.58996044]
[1772980423659,0.59207703,82.289,82.25,12.15805471]
[1772980424259,0.59207703,82.289,82.251,0.58996044]
[1772980424868,0.59207703,82.287,82.251,0.58996044]
[1772980425168,0.59207703,82.287,82.252,12.15775908]
[1772980427883,4.72551564,82.29,82.252,12.15775908]
[1772980427884,0.59207703,82.285,82.252,12.15775908]
[1772980429589,0.59207703,82.285,82.252,12.74771952]
[1772980429977,0.59207703,82.283,82.252,12.74771952]
[1772980430177,0.59207703,82.313,82.254,0.58996044]
[1772980431880,0.59207703,82.311,82.256,0.58996044]
[1772980433084,0.59207703,82.309,82.256,0.58996044]
[1772980435288,0.59207703,82.299,82.258,0.58996044]
[1772980437980,0.59207703,82.297,82.26,0.58996044]
[1772980440986,0.58864237,82.295,82.262,0.58996044]
[1772980443407,42.52940604,82.296,82.264,0.55665652]
[1772980443408,0.53875158,82.293,82.264,0.55665652]
[1772980445803,0.54812,82.289,82.249,0.518962]
[1772980446791,0.54812,82.279,82.218,0.518962]
[1772980447498,0.54812,82.284,82.224,0.518962]
[1772980447704,0.54812,82.284,82.227,0.518962]
[1772980449115,0.54812,82.282,82.227,0.518962]
[1772980449789,4.72551564,82.29,82.23,0.518962]
[1772980449790,0.54812,82.28,82.23,0.518962]
[1772980453391,0.28432314,82.302,82.233,0.518962]
[1772980453392,0.54812,82.285,82.233,0.518962]
[1772980456097,4.72551564,82.3,82.236,0.518962]
[1772980456304,12.69893592,82.299,82.236,0.518962]
[1772980456497,12.69893592,82.299,82.24,3.69383402]
[1772980456702,12.69893592,82.299,82.242,0.518962]
[1772980459116,12.69893592,82.299,82.248,0.518962]
[1772980459499,0.54812,82.303,82.249,0.28432314]
[1772980459701,0.54812,82.303,82.25,0.518962]
[1772980462912,0.54812,82.301,82.253,0.518962]
[1772980465099,0.54812,82.301,82.256,0.518962]
[1772980467222,0.54812,82.301,82.259,0.518962]
[1772980468522,0.54812,82.301,82.261,0.518962]
[1772980468725,0.54812,82.301,82.262,0.518962]
[1772980469607,0.54812,82.301,82.264,0.28432314]
[1772980469809,0.54812,82.301,82.265,0.518962]
[1772980471228,0.54812,82.301,82.264,0.28432314]
[1772980471229,0.54812,82.301,82.267,0.518962]
[1772980472122,12.15066828,82.3,82.267,0.518962]
[1772980472323,0.54784271,82.289,82.248,0.518962]
[1772980473326,0.51510583,82.287,82.25,0.54569048]
[1772980475729,0.51510583,82.269,82.235,103.6]
[1772980475909,0.51510583,82.269,82.23,0.54569048]
[1772980476238,0.51510583,82.269,82.208,3.69383402]
[1772980476239,0.51510583,82.249,82.191,12.71247273]
[1772980476408,0.28432314,82.262,82.192,0.54569048]
[1772980476409,0.51510583,82.239,82.192,0.54569048]
[1772980476610,0.51510583,82.239,82.193,0.54569048]
[1772980477728,0.51510583,82.239,82.191,42.58373787]
[1772980477729,0.51510583,82.237,82.195,0.54569048]
[1772980478629,0.51510583,82.237,82.195,0.04569048]
[1772980479931,0.51510583,82.235,82.195,0.04569048]
[1772980482222,0.51510583,82.233,82.195,0.04569048]
[1772980482929,12.16042026,82.234,82.194,12.16633817]
[1772980482930,0.51510583,82.229,82.194,12.16633817]
[1772980483534,0.51510583,82.229,82.19,12.36691187]
[1772980484343,0.51510583,82.227,82.19,12.36691187]
[1772980485039,0.51510583,82.227,82.19,11.86691187]
[1772980485333,0.51510583,82.218,82.183,0.54569048]
[1772980486436,0.51510583,82.228,82.184,0.54569048]
[1772980487130,0.51510583,82.219,82.184,0.54569048]
[1772980487728,0.51510583,82.219,82.186,0.54569048]
[1772980488129,0.51510583,82.217,82.186,0.54569048]
[1772980488317,0.51510583,82.217,82.185,12.16767049]
[1772980488518,0.51510583,82.217,82.185,12.71336097]
[1772980488715,0.51510583,82.217,82.186,0.54569048]
[1772980490032,0.51510583,82.209,82.171,0.54569048]
[1772980491234,0.51510583,82.207,82.172,0.54569048]
[1772980494027,0.51510583,82.207,82.174,0.54569048]
[1772980495945,0.51510583,82.205,82.174,0.54569048]
[1772980496152,0.51510583,82.203,82.176,0.54569048]
[1772980497150,12.16485815,82.204,82.15,0.2]
[1772980497151,0.51510583,82.188,82.15,0.2]
[1772980497345,0.51510583,82.169,82.15,0.2]
[1772980498157,0.51510583,82.159,82.14,1e-08]
[1772980498338,0.51510583,82.149,82.117,0.54569048]
[1772980499432,4.72834066,82.13,82.097,0.54569048]
[1772980499641,0.51510583,82.161,82.114,0.54569048]
[1772980499846,0.51510583,82.153,82.115,0.54569048]
[1772980500053,0.51510583,82.151,82.117,0.54569048]
[1772980500552,0.51510583,82.149,82.117,0.54569048]
[1772980500951,42.60395364,82.152,82.093,0.54569048]
[1772980500952,4.72834066,82.13,82.093,0.54569048]
[1772980501138,4.72834066,82.13,82.092,30.45333271]
[1772980501139,0.51510583,82.129,82.109,12.17887093]
[1772980502156,0.51510583,82.149,82.114,0.54569048]
[1772980502355,0.51510583,82.157,82.115,0.54569048]
[1772980502565,0.51510583,82.173,82.118,0.58926467]
[1772980502936,0.57101966,82.189,82.12,0.58926467]
[1772980503255,0.57101966,82.188,82.122,0.58926467]
[1772980504156,0.57101966,82.186,82.127,0.58926467]
[1772980504456,0.57101966,82.186,82.128,0.58926467]
[1772980504754,0.57602792,82.169,82.128,0.58926467]
[1772980505760,0.57602792,82.179,82.128,0.58926467]
[1772980506142,4.72834066,82.17,82.13,0.59706747]
[1772980506359,0.57602792,82.169,82.13,0.59706747]
[1772980506553,0.57602792,82.169,82.113,0.59706747]
[1772980506554,0.57602792,82.159,82.113,0.59706747]
[1772980507160,0.57602792,82.169,82.115,0.59706747]
[1772980507365,0.57602792,82.169,82.116,0.59706747]
[1772980508465,0.57602792,82.167,82.119,0.59706747]
[1772980509746,0.57602792,82.173,82.121,0.59706747]
[1772980509946,0.57602792,82.18,82.124,0.59706747]
[1772980510956,0.57602792,82.18,82.126,0.59706747]
[1772980511659,0.57602792,82.178,82.126,0.59706747]
[1772980511963,12.16855887,82.179,82.126,0.59706747]
[1772980512154,0.57602792,82.178,82.126,0.59706747]
[1772980512963,0.57602792,82.178,82.129,0.59706747]
[1772980513371,0.57602792,82.176,82.129,0.59706747]
[1772980513567,0.57602792,82.183,82.13,0.28432314]
[1772980513869,0.57602792,82.183,82.131,0.59706747]
[1772980514564,0.57602792,82.179,82.131,0.59706747]
[1772980516474,0.57602792,82.177,82.134,0.59706747]
[1772980518057,0.57602792,82.169,82.132,12.17552232]
[1772980519370,0.57602792,82.167,82.132,0.59706747]
[1772980519689,0.57602792,82.159,82.114,0.59706747]
[1772980519974,0.57602792,82.159,82.11,0.38432314]
[1772980519975,0.57602792,82.139,82.11,0.1]
[1772980520778,0.57602792,82.139,82.11,0.69706747]
[1772980521359,0.57602792,82.137,82.11,0.69706747]
[1772980521579,0.57602792,82.137,82.111,12.17863623]
[1772980523184,0.57602792,82.137,82.11,0.1]
[1772980523363,0.57602792,82.129,82.11,0.1]
[1772980523562,0.57602792,82.129,82.11,0.69706747]
[1772980524159,12.75214325,82.128,82.11,0.1]
[1772980524381,0.57602792,82.127,82.11,0.1]
[1772980525361,0.57602792,82.136,82.111,0.59706747]
[1772980525561,0.57602792,82.134,82.11,0.1]
[1772980526473,0.57602792,82.134,82.092,0.59706747]
[1772980526668,0.57602792,82.129,82.092,12.77839599]
[1772980527264,0.57602792,82.129,82.101,12.77718707]
[1772980527464,12.17611533,82.128,82.104,0.59706747]
[1772980527984,0.57602792,82.127,82.104,0.59706747]
[1772980528888,0.57602792,82.138,82.104,0.59706747]
[1772980529484,0.57602792,82.136,82.106,0.59706747]
[1772980529987,12.17478115,82.137,82.106,0.59706747]
[1772980530290,0.57602792,82.136,82.106,0.59706747]
[1772980530864,12.17478115,82.137,82.106,0.59706747]
[1772980532271,0.57602792,82.137,82.107,12.17922954]
[1772980532474,0.57602792,82.137,82.108,0.59706747]
[1772980534097,0.65227483,82.148,82.108,0.59706747]
[1772980534272,0.65227483,82.164,82.111,0.66400663]
[1772980534473,0.65227483,82.163,82.111,0.66400663]
[1772980537596,0.65227483,82.161,82.114,0.66400663]
[1772980540002,30.42695097,82.164,82.113,0.28432314]
[1772980540003,0.65227483,82.159,82.116,0.66400663]
[1772980540901,13.51082838,82.165,82.116,0.66400663]
[1772980541089,12.85855355,82.165,82.116,0.66400663]
[1772980542185,12.85855355,82.165,82.119,0.66400663]
[1772980544096,12.85855355,82.165,82.12,103.50706281]
[1772980544282,12.85855355,82.165,82.122,0.66400663]
[1772980544788,0.65227483,82.164,82.122,0.66400663]
[1772980545399,12.85855355,82.165,82.125,0.66400663]
[1772980546615,12.85855355,82.165,82.124,0.28432314]
[1772980546616,0.65227483,82.164,82.128,0.66400663]
[1772980546911,0.65227483,82.164,82.13,0.66400663]
[1772980548507,0.65227483,82.164,82.131,42.614847]
[1772980548686,0.65227483,82.164,82.133,0.66400663]
[1772980548896,12.85855355,82.165,82.133,0.66400663]
[1772980548897,0.65227483,82.162,82.133,0.66400663]
[1772980549317,0.65227483,82.159,82.128,103.6]
[1772980549606,0.65227483,82.159,82.124,12.17656638]
[1772980550892,0.65227483,82.157,82.123,0.66400663]
[1772980552220,0.65227483,82.157,82.105,0.66400663]
[1772980553919,0.65227483,82.157,82.107,0.66400663]
[1772980553920,0.65227483,82.149,82.107,0.66400663]
[1772980555717,0.65227483,82.129,82.095,12.18097061]
[1772980555897,0.65227483,82.127,82.095,12.18097061]
[1772980556314,0.65227483,82.141,82.102,0.66400663]
[1772980556708,0.65227483,82.158,82.103,0.66400663]
[1772980558214,0.65227483,82.158,82.101,42.63041862]
[1772980558215,0.65227483,82.156,82.106,0.66400663]
[1772980558904,0.65227483,82.161,82.109,0.66400663]
[1772980559924,0.65227483,82.159,82.112,0.66400663]
[1772980560798,0.65227483,82.175,82.117,0.66400663]
[1772980560999,0.65227483,82.182,82.118,0.66400663]
[1772980561199,12.16928018,82.175,82.118,0.66400663]
[1772980561624,12.16838241,82.181,82.118,0.66400663]
[1772980561924,12.16878773,82.178,82.118,0.66400663]
[1772980562426,0.65227483,82.182,82.124,0.66400663]
[1772980563906,0.67173375,82.18,82.126,0.66958904]
[1772980564102,0.67173375,82.18,82.127,0.66958904]
[1772980564421,0.67173375,82.187,82.127,0.66958904]
[1772980564611,12.16752244,82.186,82.127,0.66958904]
[1772980564805,12.79393332,82.186,82.127,0.66958904]
[1772980565413,0.62641088,82.185,82.127,0.66958904]
[1772980566100,0.62641088,82.185,82.132,0.28432314]
[1772980566307,0.62641088,82.185,82.133,0.65150905]
[1772980567826,12.79422943,82.184,82.133,0.65150905]
[1772980568531,0.62641088,82.208,82.139,0.65150905]
[1772980570022,0.62641088,82.189,82.139,0.65150905]
[1772980570624,0.62641088,82.187,82.141,0.28432314]
[1772980570825,0.62641088,82.187,82.142,0.65150905]
[1772980573623,0.62641088,82.185,82.144,0.93583219]
[1772980573821,0.62641088,82.185,82.145,0.65150905]
[1772980575416,0.62641088,82.192,82.148,0.65150905]
[1772980576014,0.62641088,82.198,82.151,0.65150905]
[1772980576620,0.62641088,82.198,82.154,0.65150905]
[1772980577936,12.16475804,82.205,82.156,0.65150905]
[1772980578135,12.79116892,82.205,82.156,0.65150905]
[1772980578337,12.16475804,82.205,82.156,0.65150905]
[1772980578531,0.62641088,82.204,82.156,0.65150905]
[1772980581635,0.62641088,82.199,82.151,12.8242154]
[1772980581939,0.62641088,82.199,82.152,0.65150905]
[1772980582115,0.62641088,82.199,82.153,0.65150905]
[1772980582523,12.16500614,82.203,82.153,0.65150905]
[1772980582839,12.79141702,82.203,82.153,0.65150905]
[1772980583039,12.16500614,82.203,82.153,0.65150905]
[1772980583239,0.62641088,82.202,82.153,0.65150905]
[1772980583942,0.62641088,82.202,82.155,0.28432314]
[1772980584118,0.62641088,82.202,82.156,0.65150905]
[1772980584323,0.62641088,82.202,82.159,0.65150905]
[1772980585644,0.62641088,82.202,82.161,0.93583219]
[1772980585844,0.62641088,82.202,82.162,0.65150905]
[1772980588621,0.62641088,82.202,82.164,0.93583219]
[1772980588942,0.62641088,82.2,82.163,12.17092852]
[1772980589545,0.62641088,82.2,82.163,12.82243757]
[1772980590748,0.62641088,82.198,82.157,12.17181737]
[1772980591538,0.62641088,82.198,82.158,0.65150905]
[1772980594653,12.16589413,82.197,82.159,12.17152107]
[1772980594838,0.69578287,82.196,82.16,0.68443224]
[1772980597632,0.69578287,82.194,82.162,0.68443224]
[1772980599147,12.16619015,82.195,82.162,0.68443224]
[1772980599656,0.69578287,82.196,82.164,0.68443224]
[1772980599848,0.69578287,82.196,82.164,0.96875538]
[1772980600050,0.69578287,82.208,82.165,0.68443224]
[1772980603650,0.69578287,82.206,82.167,0.68443224]
[1772980605165,12.8585664,82.219,82.167,0.96875538]
[1772980605362,0.69578287,82.218,82.168,0.68443224]
[1772980607163,0.69578287,82.218,82.171,0.68443224]
[1772980607755,0.69578287,82.217,82.171,0.68443224]
[1772980609255,0.69578287,82.215,82.173,0.28432314]
[1772980609451,0.69578287,82.215,82.174,0.68443224]
[1772980610767,0.69578287,82.221,82.176,0.68443224]
[1772980610952,0.69578287,82.221,82.177,0.68443224]
[1772980611263,0.69578287,82.219,82.179,0.68443224]
[1772980611570,12.16249087,82.22,82.172,30.4239887]
[1772980611571,4.73743543,82.21,82.172,12.16957355]
[1772980611780,0.69578287,82.209,82.172,12.16957355]
[1772980612649,0.69578287,82.207,82.168,12.1701879]
[1772980612854,0.69578287,82.207,82.164,12.17071996]
[1772980614767,0.69578287,82.205,82.164,12.17071996]
[1772980615376,0.69578287,82.205,82.165,0.68443224]
[1772980617183,0.69578287,82.203,82.167,0.68443224]
[1772980619280,0.69578287,82.201,82.169,0.68443224]
[1772980620376,0.69578287,82.199,82.171,0.68443224]
[1772980621982,12.86123299,82.2,82.171,0.68443224]
[1772980622686,12.86123299,82.2,82.173,0.6865387]
[1772980624389,0.67396033,82.199,82.172,12.16959548]
[1772980624976,0.66266911,82.197,82.166,0.69799515]
[1772980627962,0.66266911,82.195,82.167,12.17033602]
[1772980628175,0.66266911,82.195,82.168,0.69799515]